{"text_format":"1","workbook":"xlsx","n_sheets":5,"sheets":["Cover Page","Course Based","Required","Recommended","EDLD Dept. Use Only"],"not_rendered":{"charts":0,"images":0,"macros":1,"external_links":0,"defined_names":0,"comments":0,"pivot_tables":0},"unopened":[],"bounds":{"document_bytes":16777216,"sheet_cells":100000,"rows_first":2000,"rows_last":500,"rows_between":2000,"halvings":0,"cell_chars":16384,"cell_head_chars":4096},"cells_cut":0,"cells_raw":0,"read":"whole","date_system":"1900"}

{"sheet":"Cover Page","index":0,"n_rows":35,"n_cols":4,"rows_kept":35,"cut":false,"hidden":false,"merged":[[2,0,2,3],[0,0,0,3]]}
["Fieldwork Documentation"]
[]
["Instructions: This cover page must be completed in totality."]
[]
["Student Name:"]
["790#","790 -  -"]
[]
[" Names (For each signature verifying fieldwork list the supervisors' name, position, and school.)"]
[null,"Name","Position","School"]
[1]
[2]
[3]
[4]
[5]
[6]
[7]
[8]
[9]
[10]
[]
[]
[]
["Fieldwork Hours"]
[null,"Course Based",{"$f":"'Course Based'!E17","v":0}]
[null,"Required",{"$f":"Required!E21","v":0}]
[null,"Recommended",{"$f":"Recommended!D46","v":0}]
[]
[null,"Total",{"$f":"SUM(C24:C26)","v":0},"Minimum 216 Hours"]
[]
[null,null,{"$f":"216-C28","v":216},"Hours remaining"]
[]
[]
[]
[]
["Advisor Signature:",null,"Date:"]

{"sheet":"Course Based","index":1,"n_rows":17,"n_cols":5,"rows_kept":17,"cut":false,"hidden":false,"merged":[[0,0,0,4],[1,0,1,4]]}
["Instructions: Following the completion of each course based field experience, electronically check the completion box with an \"X\" (when this box is checked the hours will automatically fill) , use the pull-down menu under \"semester\" to select the semester completed. The subtotal of course based hours will accumulate as each field experience is checked."]
[]
["Course","Check (X)","Semester","Assignment","Hours"]
["EDLD 657 Facilities Planning     ",null,null,"Checklists ADA, Playgrounds etc. - 3 Hours",{"$f":"IF(B4=\"x\",3,0)","v":0}]
[]
["EDLD 653 School Personnel Administration",null,null,"Personnel Plan – 10 Hours",{"$f":"IF(B6=\"x\",10,0)","v":0}]
[]
["EDLD 658 Public Relations for Superintendents",null,null,"Public Relations Plan – 10 Hours",{"$f":"IF(B8=\"x\",10,0)","v":0}]
[]
["EDLD 656 Economics of Education",null,null,"Interview Board Chair – 2 hours minimum ",{"$f":"IF(B10=\"x\",2,0)","v":0}]
[null,null,null,"Systems Analysis Paper– 2 Hours",{"$f":"IF(B11=\"x\",2,0)","v":0}]
[]
["EDLD 556 School Finance",null,null,"School Budget - 20 Hours",{"$f":"IF(B13=\"x\",20,0)","v":0}]
[]
["EDLD 554 School Law",null,null,"Case analysis - 6 Hours",{"$f":"IF(B15=\"x\",6,0)","v":0}]
[]
[null,null,null,"Course Based Total Hours",{"$f":"SUM(E4:E15)","v":0}]

{"sheet":"Required","index":2,"n_rows":21,"n_cols":6,"rows_kept":21,"cut":false,"hidden":false,"merged":[[0,0,0,5],[1,0,1,5]]}
["Instructions: Following the completion of each required field experience, electronically check the completion box with an \"X\" (when this box is checked the hours will automatically fill) , use the pull-down menu under \"semester\" to select the semester completed. The subtotal of required hours will accumulate as each field experience is checked."]
[]
[null,null,"Check","Semester","Hours","Signature"]
[1,"Attend 12 Board Meetings – 2 Hours/Board Meeting = Total of 24 Hours Minimum",null,null,{"$f":"IF(C4=\"x\",2,0)","v":0}]
[2,"Attend 3 Board Subcommittee Meetings – 1 Hour/Meeting = Total of 3 Hours Minimum",null,null,{"$f":"IF(C5=\"x\",3,0)","v":0}]
[3,"Interview the District Business Manager/Clerk – 2 Hours (can be multiple interviews and more hours)",null,null,{"$f":"IF(C6=\"x\",2,0)","v":0}]
[4,"Interview with a District Secretary/Administrative Assistant – 1 Hour (can be multiple interviews and more hours)",null,null,{"$f":"IF(C7=\"x\",1,0)","v":0}]
[5,"Transportation Director – 2 Hours Minimum (Can Be Multiple Interviews and More Hours)",null,null,0]
[6,"Review the Transportation Contract in a School District That Contracts Their Transportation – 1 Hour",null,null,{"$f":"IF(C9=\"x\",1,0)","v":0}]
[7,"Curriculum Director or Coop Curriculum Director – 2 Hours",null,null,0]
[8,"Maintenance Director – 2 Hours (Can Be Multiple Interviews and More Hours)",null,null,0]
[9,"Head Cook – 2 Hours (Can Be Multiple Interviews and More Hours)",null,null,0]
[10,"Athletic Director – 2 Hours (Can Be Multiple Interviews and More Hours)",null,null,0]
[11,"Explore the Safe School Center at the University of Montana website to identify current issues and resources in school safety. (2 hours)",null,null,0]
[12,"Shadowing the Superintendent – 12 Hours Total (Two Days Required and Can Be More Hours)",null,null,{"$f":"IF(C15=\"x\",12,0)","v":0}]
[13,"Attend a Regional MASS Meeting with a Superintendent – 4 Hours ",null,null,{"$f":"IF(C16=\"x\",4,0)","v":0}]
[14,"Analyze Handbooks for Compliance with District Policies – 10 Hours",null,null,{"$f":"IF(C17=\"x\",10,0)","v":0}]
[15,"Meet with the Person Responsible (School Principal or Counselor) for Analyzing the Efficacy or Help Develop (Using Data) the Class Schedule – 4 Hours",null,null,{"$f":"IF(C18=\"x\",4,0)","v":0}]
[16,"Review District Web Page and PR Plan – 2 Hours",null,null,0]
[]
[null,null,null,"Required Field Experience Total Hours",{"$f":"SUM(E4:E19)","v":0}]

{"sheet":"Recommended","index":3,"n_rows":46,"n_cols":5,"rows_kept":46,"cut":false,"hidden":false,"merged":[[23,4,23,5],[17,4,17,5],[18,4,18,5],[19,4,19,5],[20,4,20,5],[21,4,21,5],[22,4,22,5],[0,0,1,5],[2,4,2,5],[3,4,3,5],[4,4,4,5],[16,4,16,5],[5,4,5,5],[6,4,6,5],[7,4,7,5],[8,4,8,5],[9,4,9,5],[10,4,10,5],[11,4,11,5],[12,4,12,5],[13,4,13,5],[14,4,14,5],[15,4,15,5]]}
["Instructions: Following the completion of each recomended or student selected field experience, use the pull-down menu under \"semester\" to select the semester completed. Record the number of hours for each field experience activity and secure a supervisor's signature. For the student selected activities, write a description of the activity in column A. "]
[]
[null,null,"Semester","Hours","Signature"]
["Recommended"]
["Attend Negotiations Meetings"]
["Attend a Grievance Meeting"]
["Attend a Uniform Complaint Policy Meeting"]
["Attend a Book Challenge Meeting"]
["Attend a Building & Grounds Committee Meeting"]
["Attend a Meeting Involving Union Representation"]
["Review Agreements Regarding Athletic, Curriculum, or Special Education Cooperatives"]
["Attend an Athletic, Curriculum, or Special Education Cooperative Board Meeting"]
["Attend a Service Organization (Lions, Kiwanis, Senior Citizen, Chamber of Commerce) Meeting"]
["Interview 3 Principals at Different Grade Levels Regarding Superintendent-Principal Relationships"]
["Attend a Policy Review Meeting"]
["Attend Administrative or Department Head Meetings"]
["Attend a Graduation Planning Meeting"]
["Visit the Legislature When It Is in Session"]
["Review an Occupational Safety and Health Administration (OSHA) Complaint"]
["Review Findings from the Department of Labor"]
["Review the Asbestos Hazard Emergency Response Act (AHERA) Asbestos Report"]
["Review School Safety Plan"]
["Locate and Understand Your Material Safety Data Sheets (MSDS) "]
["Analyze Student Enrollment Projections"]
["Review Annual Student Summative Achievement Data – Track Longitudinally"]
["Examine Curriculum Review Cycles and Their Relationship to the Budget"]
["Review or Participate in Completing the Annual Civil Rights Data Collection (CRDC) Report"]
["Review or Participate in Completing the Annual Accreditation Report or Process"]
["Athletics – Facilitate Some Aspect of a Home Event (Concessions, Run a Track Meet, Tournament, Hospitality Room, etc.)"]
[]
["Student Selected"]
[]
[]
[]
[]
[]
[]
[]
[]
[]
[]
[]
[]
[]
[]
[null,null,"Total",{"$f":"SUM(D5:D45)","v":0}]

{"sheet":"EDLD Dept. Use Only","index":4,"n_rows":19,"n_cols":1,"rows_kept":19,"cut":false,"hidden":false,"merged":[]}
[]
["Fall 2024"]
["Spring 2025"]
["Summer 2025"]
["Fall 2025"]
["Spring 2026"]
["Summer 2026"]
["Fall 2026"]
["Spring 2027"]
["Summer 2027"]
["Fall 2027"]
["Spring 2028"]
["Summer 2028"]
["Fall 2028"]
["Spring 2029"]
["Summer 2029"]
["Fall 2029"]
["Spring 2030"]
["Summer 2030"]